[Event "RUS-ch Men Blitz 2019"]
[Site "Sochi"]
[Date "2019.10.17"]
[Round "10.15"]
[White "Lugovskoy, Maxim"]
[Black "Frolov, Aleksey G."]
[Result "1-0"]
[ECO "A45"]
[WhiteElo "2436"]
[BlackElo "2093"]
[Annotator "NA"]
[PlyCount "84"]
[EventDate "2019.10.17"]
[EventType "swiss"]
[EventCountry "RUS"]
[SourceTitle "playchess.com"]
[Source "ChessBase"]
[SourceQuality "1"]
[TimeControl "180+2"]

1. d4 {[%emt 0:00:00]} Nf6 {[%emt 0:00:00]} 2. Nc3 {[%emt 0:00:00]} d5 {[%emt 0:00:00]} 3. Bf4 {[%emt 0:00:00]} e6 {[%emt 0:00:05]} 4. Nb5 {[%emt 0:00:01]} Bd6 {[%emt 0:00:03]} 5. Nxd6+ {[%emt 0:00:01]} cxd6 {[%emt 0:00:01]} 6. Nf3 {[%emt 0:00:02]} Nc6 {[%emt 0:00:01]} 7. h3 {[%emt 0:00:02]} O-O {[%emt 0:00:03]} 8. e3 {[%emt 0:00:00]} Re8 {[%emt 0:00:01]} 9. Be2 {[%emt 0:00:05]} e5 {[%emt 0:00:03]} 10. Bg5 {[%emt 0:00:00]} h6 {[%emt 0:00:16]} 11. Bxf6 {[%emt 0:00:12]} Qxf6 {[%emt 0:00:04]} 12. dxe5 {[%emt 0:00:02]} dxe5 {[%emt 0:00:01]} 13. c3 {[%emt 0:00:20]} d4 {[%emt 0:00:09]} 14. O-O {[%emt 0:00:06]} d3 {[%emt 0:00:11]} 15. Bxd3 {[%emt 0:00:38]} e4 {[%emt 0:00:01]} 16. Be2 {[%emt 0:00:03]} exf3 {[%emt 0:00:01]} 17. Bxf3 {[%emt 0:00:01]} Bf5 {[%emt 0:00:27]} 18. Qa4 {[%emt 0:00:11]} Rad8 {[%emt 0:00:12]} 19. Rfd1 {[%emt 0:00:04]} a6 {[%emt 0:00:15]} 20. Qf4 {[%emt 0:00:07]} Bc2 {[%emt 0:00:06]} 21. Rxd8 {[%emt 0:00:04]} Rxd8 {[%emt 0:00:03]} 22. Qc7 {[%emt 0:00:02]} Qe7 {[%emt 0:00:20]} 23. Qb6 {[%emt 0:00:01]} Rd6 {[%emt 0:00:06]} 24. Qc5 {[%emt 0:00:08]} Qd7 {[%emt 0:00:05]} 25. Rc1 {[%emt 0:00:04]} Bg6 {[%emt 0:00:08]} 26. b4 {[%emt 0:00:06]} Rd2 {[%emt 0:00:03]} 27. a4 {[%emt 0:00:03]} Qd6 {[%emt 0:00:07]} 28. Qb6 {[%emt 0:00:01]} Ne5 {[%emt 0:00:05]} 29. Qxb7 {[%emt 0:00:03]} Nxf3+ {[%emt 0:00:06]} 30. Qxf3 {[%emt 0:00:23]} Bc2 31. Qa8+ Kh7 {[%emt 0:00:11]} 32. b5 {[%emt 0:00:09]} Rd1+ {[%emt 0:00:15]} 33. Rxd1 {[%emt 0:00:01]} Qxd1+ {[%emt 0:00:01]} 34. Kh2 {[%emt 0:00:00]} Qd6+ {[%emt 0:00:03]} 35. Kg1 {[%emt 0:00:01]} Bxa4 {[%emt 0:00:02]} 36. Qe4+ {[%emt 0:00:04]} g6 {[%emt 0:00:11]} 37. Qxa4 {[%emt 0:00:01]} axb5 38. Qxb5 {[%emt 0:00:01]} Qd1+ {[%emt 0:00:03]} 39. Qf1 {[%emt 0:00:06]} Qc2 {[%emt 0:00:01]} 40. Qc4 {[%emt 0:00:01]} Qd1+ {[%emt 0:00:06]} 41. Kh2 {[%emt 0:00:01]} Qd6+ {[%emt 0:00:01]} 42. Qf4 {[%emt 0:00:01]} Qd7 {[%emt 0:00:03]} 1-0

[Event "RUS-ch Men Blitz 2019"]
[Site "Sochi"]
[Date "2019.10.17"]
[Round "10.16"]
[White "Shubin, Kirill"]
[Black "Papin, Vasily"]
[Result "1/2-1/2"]
[ECO "B40"]
[WhiteElo "2416"]
[BlackElo "2481"]
[Annotator "ChessBase"]
[PlyCount "79"]
[EventDate "2019.10.17"]
[EventType "swiss"]
[EventCountry "RUS"]
[SourceTitle "playchess.com"]
[Source "ChessBase"]
[SourceQuality "1"]
[TimeControl "180+2"]

1. e4 {[%emt 0:00:00]} c5 {[%emt 0:00:00]} 2. Nf3 {[%emt 0:00:00]} e6 {[%emt 0:00:00]} 3. g3 {[%emt 0:00:00]} Nc6 {[%emt 0:00:00]} 4. Bg2 {[%emt 0:00:01]} g5 {[%emt 0:00:01]} 5. h3 {[%emt 0:00:04]} Bg7 {[%emt 0:00:02]} 6. c3 {[%emt 0:00:03]} h6 {[%emt 0:00:04]} 7. Na3 {[%emt 0:00:04]} Nge7 {[%emt 0:00:12]} 8. O-O {[%emt 0:00:02]} d5 {[%emt 0:00:01]} 9. exd5 {[%emt 0:00:12]} Nxd5 {[%emt 0:00:03]} 10. Nc2 {[%emt 0:00:16]} O-O {[%emt 0:00:30]} 11. d4 {[%emt 0:00:03]} cxd4 {[%emt 0:00:02]} 12. Ncxd4 {[%emt 0:00:02]} Qb6 {[%emt 0:00:15]} 13. Nxc6 {[%emt 0:00:07]} bxc6 {[%emt 0:00:01]} 14. Qc2 {[%emt 0:00:08]} Ba6 {[%emt 0:00:07]} 15. Re1 {[%emt 0:00:02]} Rfd8 {[%emt 0:00:05]} 16. h4 {[%emt 0:00:14]} g4 {[%emt 0:00:18]} 17. Nh2 {[%emt 0:00:37]} h5 {[%emt 0:00:06]} 18. Nf1 {[%emt 0:00:00]} Rab8 {[%emt 0:00:06]} 19. Nd2 {[%emt 0:00:15]} Rd7 {[%emt 0:01:06]} 20. a4 {[%emt 0:00:12]} Nf6 {[%emt 0:00:12]} 21. a5 {[%emt 0:00:10]} Qc5 {[%emt 0:00:07]} 22. Ne4 {[%emt 0:00:13]} Nxe4 {[%emt 0:00:04]} 23. Bxe4 {[%emt 0:00:12]} Rbd8 {[%emt 0:00:02]} 24. Be3 {[%emt 0:00:03]} Qb5 {[%emt 0:00:10]} 25. Red1 {[%emt 0:00:24]} f5 {[%emt 0:00:03]} 26. Bg2 {[%emt 0:00:03]} Rxd1+ {[%emt 0:00:03]} 27. Rxd1 {[%emt 0:00:01]} Rxd1+ {[%emt 0:00:02]} 28. Qxd1 {[%emt 0:00:02]} Qxb2 {[%emt 0:00:02]} 29. Qd8+ {[%emt 0:00:06]} Kh7 {[%emt 0:00:01]} 30. Qg5 {[%emt 0:00:04]} Bc4 {[%emt 0:00:10]} 31. Qxh5+ {[%emt 0:00:01]} Kg8 {[%emt 0:00:00]} 32. Qe8+ Kh7 33. h5 {[%emt 0:00:05]} Qxc3 {[%emt 0:00:06]} 34. Qg6+ {[%emt 0:00:04]} Kh8 {[%emt 0:00:00]} 35. h6 {[%emt 0:00:08]} Bf6 {[%emt 0:00:02]} 36. Kh2 {[%emt 0:00:06]} Bd5 {[%emt 0:00:03]} 37. Bd2 {[%emt 0:00:04]} Qd4 {[%emt 0:00:03]} 38. Be3 {[%emt 0:00:00]} Qc3 {[%emt 0:00:00]} 39. Bd2 {[%emt 0:00:03]} Qd4 {[%emt 0:00:01]} 40. Be3 {[%emt 0:00:02]} 1/2-1/2

[Event "RUS-ch Men Blitz 2019"]
[Site "Sochi"]
[Date "2019.10.17"]
[Round "10.17"]
[White "Mikhailovsky, Vladimir"]
[Black "Samusenko, Maksim"]
[Result "1-0"]
[ECO "A05"]
[WhiteElo "2209"]
[BlackElo "2445"]
[Annotator "NA"]
[PlyCount "84"]
[EventDate "2019.10.17"]
[EventType "swiss"]
[EventCountry "RUS"]
[SourceTitle "playchess.com"]
[Source "ChessBase"]
[SourceQuality "1"]
[TimeControl "180+2"]

1. Nf3 {[%emt 0:00:00]} Nf6 {[%emt 0:00:00]} 2. b3 {[%emt 0:00:00]} g6 {[%emt 0:00:00]} 3. Bb2 {[%emt 0:00:01]} Bg7 {[%emt 0:00:01]} 4. g3 {[%emt 0:00:02]} O-O {[%emt 0:00:01]} 5. Bg2 {[%emt 0:00:01]} d6 {[%emt 0:00:01]} 6. O-O {[%emt 0:00:02]} e5 {[%emt 0:00:00]} 7. c4 {[%emt 0:00:04]} Nbd7 {[%emt 0:00:04]} 8. d4 {[%emt 0:00:02]} Re8 {[%emt 0:00:08]} 9. dxe5 {[%emt 0:00:03]} Ng4 {[%emt 0:00:08]} 10. Nc3 {[%emt 0:00:02]} Ngxe5 {[%emt 0:00:10]} 11. Nxe5 {[%emt 0:00:02]} Bxe5 {[%emt 0:00:06]} 12. Qc2 {[%emt 0:00:05]} a5 {[%emt 0:00:18]} 13. e4 {[%emt 0:00:11]} Nc5 {[%emt 0:00:03]} 14. f4 {[%emt 0:00:02]} Bg7 {[%emt 0:00:05]} 15. Nd5 {[%emt 0:00:07]} c6 {[%emt 0:00:07]} 16. Bxg7 {[%emt 0:00:05]} Kxg7 {[%emt 0:00:01]} 17. Qb2+ {[%emt 0:00:17]} f6 {[%emt 0:00:02]} 18. Nc3 {[%emt 0:00:02]} Be6 {[%emt 0:00:19]} 19. Rad1 {[%emt 0:00:02]} Qe7 {[%emt 0:00:04]} 20. Rfe1 {[%emt 0:00:13]} Rad8 {[%emt 0:00:01]} 21. Ne2 {[%emt 0:00:05]} Bg4 {[%emt 0:00:03]} 22. h3 {[%emt 0:00:05]} Be6 {[%emt 0:00:12]} 23. Nd4 {[%emt 0:00:02]} Bf7 {[%emt 0:00:01]} 24. Qc3 {[%emt 0:00:05]} Qc7 {[%emt 0:00:09]} 25. g4 {[%emt 0:00:04]} Kg8 {[%emt 0:00:21]} 26. h4 {[%emt 0:00:14]} Qb6 {[%emt 0:00:10]} 27. Kh1 {[%emt 0:00:06]} Qb4 {[%emt 0:00:05]} 28. Qg3 {[%emt 0:00:10]} a4 {[%emt 0:00:05]} 29. g5 {[%emt 0:00:06]} fxg5 {[%emt 0:00:09]} 30. hxg5 {[%emt 0:00:06]} axb3 {[%emt 0:00:04]} 31. axb3 {[%emt 0:00:01]} Ra8 {[%emt 0:00:11]} 32. Re3 {[%emt 0:00:03]} Kh8 {[%emt 0:00:31]} 33. Qh4 {[%emt 0:00:08]} Nd7 {[%emt 0:00:05]} 34. Nf3 {[%emt 0:00:28]} Nf8 {[%emt 0:00:06]} 35. Nh2 {[%emt 0:00:03]} Ra2 {[%emt 0:00:03]} 36. Ng4 {[%emt 0:00:04]} d5 {[%emt 0:00:04]} 37. Nf6 {[%emt 0:00:03]} Re7 {[%emt 0:00:04]} 38. Qh6 {[%emt 0:00:02]} Rc7 {[%emt 0:00:05]} 39. Nxd5 {[%emt 0:00:13]} Bxd5 {[%emt 0:00:06]} 40. Rxd5 {[%emt 0:00:03]} Ra1+ {[%emt 0:00:02]} 41. Kh2 {[%emt 0:00:02]} Rf7 {[%emt 0:00:00]} 42. f5 {[%emt 0:00:11]} Qb6 {[%emt 0:00:05]} 1-0

[Event "RUS-ch Men Blitz 2019"]
[Site "Sochi"]
[Date "2019.10.17"]
[Round "10.18"]
[White "Remizov, Yaroslav"]
[Black "Vastrukhin, Oleg"]
[Result "1/2-1/2"]
[ECO "C18"]
[WhiteElo "2394"]
[BlackElo "2428"]
[Annotator "NA"]
[PlyCount "111"]
[EventDate "2019.10.17"]
[EventType "swiss"]
[EventCountry "RUS"]
[SourceTitle "playchess.com"]
[Source "ChessBase"]
[SourceQuality "1"]
[TimeControl "180+2"]

1. e4 {[%emt 0:00:00]} e6 {[%emt 0:00:00]} 2. d4 {[%emt 0:00:02]} d5 {[%emt 0:00:02]} 3. Nc3 {[%emt 0:00:02]} Bb4 {[%emt 0:00:02]} 4. e5 {[%emt 0:00:02]} c5 5. a3 Bxc3+ {[%emt 0:00:04]} 6. bxc3 {[%emt 0:00:04]} Nc6 {[%emt 0:00:02]} 7. Qg4 {[%emt 0:00:12]} g6 {[%emt 0:00:01]} 8. h4 {[%emt 0:00:34]} h6 {[%emt 0:00:01]} 9. Rh3 {[%emt 0:00:20]} Qa5 {[%emt 0:00:06]} 10. Bd2 {[%emt 0:00:02]} Qa4 {[%emt 0:00:05]} 11. Qd1 {[%emt 0:00:09]} Bd7 {[%emt 0:00:09]} 12. Rb1 {[%emt 0:00:11]} c4 {[%emt 0:00:25]} 13. Rxb7 {[%emt 0:00:11]} Qxa3 {[%emt 0:00:01]} 14. Rb1 {[%emt 0:00:05]} Qa5 {[%emt 0:00:12]} 15. Ra1 {[%emt 0:00:02]} Qc7 {[%emt 0:00:01]} 16. Bc1 {[%emt 0:00:01]} Nge7 {[%emt 0:00:37]} 17. Ba3 {[%emt 0:00:01]} Qb7 {[%emt 0:00:05]} 18. f4 {[%emt 0:00:14]} a5 {[%emt 0:00:02]} 19. h5 {[%emt 0:00:01]} a4 {[%emt 0:00:07]} 20. Nf3 {[%emt 0:00:09]} Qa6 {[%emt 0:00:11]} 21. Be2 {[%emt 0:00:04]} Qa5 {[%emt 0:00:01]} 22. Nd2 {[%emt 0:00:17]} Rb8 {[%emt 0:00:18]} 23. Kf2 {[%emt 0:00:08]} Nf5 {[%emt 0:00:24]} 24. Bg4 {[%emt 0:00:32]} Rb5 {[%emt 0:00:13]} 25. hxg6 {[%emt 0:00:04]} fxg6 {[%emt 0:00:01]} 26. Bxf5 {[%emt 0:00:02]} exf5 {[%emt 0:00:04]} 27. Qe2 {[%emt 0:00:07]} Be6 {[%emt 0:00:03]} 28. Rah1 {[%emt 0:00:01]} h5 {[%emt 0:00:02]} 29. Rg3 {[%emt 0:00:07]} Rg8 {[%emt 0:00:04]} 30. Rh2 {[%emt 0:00:03]} Kd7 {[%emt 0:00:05]} 31. Re3 {[%emt 0:00:04]} Rbb8 {[%emt 0:00:06]} 32. Nf3 {[%emt 0:00:01]} Na7 {[%emt 0:00:03]} 33. Ng5 {[%emt 0:00:02]} Nb5 {[%emt 0:00:05]} 34. Bb4 {[%emt 0:00:01]} Qa6 {[%emt 0:00:00]} 35. Nh7 {[%emt 0:00:06]} a3 {[%emt 0:00:08]} 36. Nf6+ {[%emt 0:00:01]} Kc6 {[%emt 0:00:01]} 37. Rh1 {[%emt 0:00:05]} a2 {[%emt 0:00:08]} 38. Nxg8 {[%emt 0:00:02]} Rxg8 {[%emt 0:00:01]} 39. Ra1 {[%emt 0:00:01]} Rb8 {[%emt 0:00:03]} 40. Qe1 {[%emt 0:00:03]} Qa4 {[%emt 0:00:02]} 41. Qc1 {[%emt 0:00:03]} Ra8 {[%emt 0:00:09]} 42. Bc5 {[%emt 0:00:04]} Kd7 {[%emt 0:00:02]} 43. Qb2 {[%emt 0:00:00]} Kc6 {[%emt 0:00:01]} 44. Ree1 {[%emt 0:00:01]} Qa5 {[%emt 0:00:02]} 45. Bb4 {[%emt 0:00:01]} Qa4 46. Bc5 Qa5 {[%emt 0:00:01]} 47. Bb4 {[%emt 0:00:04]} Qa4 {[%emt 0:00:00]} 48. Kg3 {[%emt 0:00:01]} Qa7 {[%emt 0:00:04]} 49. Bc5 {[%emt 0:00:02]} Qa5 {[%emt 0:00:01]} 50. Bb4 {[%emt 0:00:03]} Qa4 {[%emt 0:00:01]} 51. Kh4 {[%emt 0:00:02]} Qa7 {[%emt 0:00:01]} 52. Kg5 {[%emt 0:00:02]} Qa4 {[%emt 0:00:08]} 53. Rh1 {[%emt 0:00:03]} Qa7 {[%emt 0:00:04]} 54. Kh4 {[%emt 0:00:04]} Qa4 {[%emt 0:00:01]} 55. Kg3 {[%emt 0:00:01]} Qa7 {[%emt 0:00:00]} 56. Kf3 {[%emt 0:00:01]} 1/2-1/2

[Event "RUS-ch Men Blitz 2019"]
[Site "Sochi"]
[Date "2019.10.17"]
[Round "10.19"]
[White "Sadovsky, Artem"]
[Black "Sysolyatin, Evgeny"]
[Result "0-1"]
[ECO "A20"]
[WhiteElo "2411"]
[BlackElo "2271"]
[Annotator "NA"]
[PlyCount "52"]
[EventDate "2019.10.17"]
[EventType "swiss"]
[EventCountry "RUS"]
[SourceTitle "playchess.com"]
[Source "ChessBase"]
[SourceQuality "1"]
[TimeControl "180+2"]

1. c4 {[%emt 0:00:00]} e5 {[%emt 0:00:00]} 2. g3 {[%emt 0:00:00]} Nf6 {[%emt 0:00:01]} 3. Bg2 {[%emt 0:00:01]} d5 {[%emt 0:00:00]} 4. cxd5 {[%emt 0:00:01]} Nxd5 {[%emt 0:00:01]} 5. Nc3 {[%emt 0:00:01]} Ne7 {[%emt 0:00:01]} 6. Nf3 {[%emt 0:00:03]} Nbc6 {[%emt 0:00:01]} 7. O-O {[%emt 0:00:05]} g6 {[%emt 0:00:02]} 8. d3 {[%emt 0:00:08]} Bg7 {[%emt 0:00:01]} 9. Rb1 {[%emt 0:00:06]} O-O {[%emt 0:00:11]} 10. b4 {[%emt 0:00:01]} Nd4 {[%emt 0:00:09]} 11. Nxd4 {[%emt 0:00:03]} exd4 {[%emt 0:00:07]} 12. Ne4 {[%emt 0:00:02]} Nd5 {[%emt 0:00:05]} 13. Bd2 {[%emt 0:00:11]} b6 {[%emt 0:00:11]} 14. Qb3 {[%emt 0:00:06]} Bb7 {[%emt 0:00:01]} 15. Rfc1 {[%emt 0:00:14]} Re8 {[%emt 0:00:02]} 16. Bg5 {[%emt 0:00:26]} Qd7 {[%emt 0:00:14]} 17. Nf6+ {[%emt 0:00:05]} Bxf6 {[%emt 0:00:10]} 18. Bxf6 {[%emt 0:00:01]} Rxe2 {[%emt 0:00:05]} 19. Bxd4 {[%emt 0:00:02]} Nf4 {[%emt 0:00:31]} 20. Ba1 {[%emt 0:01:13]} Nh3+ {[%emt 0:00:30]} 21. Kf1 {[%emt 0:00:46]} Rxf2+ {[%emt 0:00:02]} 22. Ke1 {[%emt 0:00:00]} Qe7+ {[%emt 0:00:11]} 23. Be4 {[%emt 0:00:02]} Bxe4 {[%emt 0:00:01]} 24. Rxc7 {[%emt 0:00:08]} Qxc7 {[%emt 0:00:08]} 25. dxe4 {[%emt 0:00:01]} Re8 {[%emt 0:00:18]} 26. Qd3 {[%emt 0:00:03]} Qc2 {[%emt 0:00:11]} 0-1

[Event "RUS-ch Men Blitz 2019"]
[Site "Sochi"]
[Date "2019.10.17"]
[Round "10.20"]
[White "Gubsky, Egor"]
[Black "Chekletsov, Ilya"]
[Result "1-0"]
[ECO "E15"]
[WhiteElo "2339"]
[BlackElo "2377"]
[Annotator "NA"]
[PlyCount "73"]
[EventDate "2019.10.17"]
[EventType "swiss"]
[EventCountry "RUS"]
[SourceTitle "playchess.com"]
[Source "ChessBase"]
[SourceQuality "1"]
[TimeControl "180+2"]

1. d4 {[%emt 0:00:00]} Nf6 {[%emt 0:00:00]} 2. c4 {[%emt 0:00:01]} e6 {[%emt 0:00:01]} 3. Nf3 {[%emt 0:00:01]} b6 {[%emt 0:00:02]} 4. g3 {[%emt 0:00:01]} Ba6 {[%emt 0:00:01]} 5. b3 {[%emt 0:00:01]} Bb7 {[%emt 0:00:16]} 6. Bg2 {[%emt 0:00:02]} Bb4+ {[%emt 0:00:01]} 7. Bd2 {[%emt 0:00:01]} c5 {[%emt 0:00:01]} 8. Bxb4 {[%emt 0:00:11]} cxb4 {[%emt 0:00:01]} 9. O-O {[%emt 0:00:03]} O-O {[%emt 0:00:02]} 10. d5 {[%emt 0:00:11]} exd5 {[%emt 0:00:34]} 11. Nh4 {[%emt 0:00:04]} Qc7 {[%emt 0:00:03]} 12. Nd2 {[%emt 0:00:38]} dxc4 {[%emt 0:00:02]} 13. Nxc4 {[%emt 0:00:02]} Bxg2 {[%emt 0:00:02]} 14. Nxg2 {[%emt 0:00:02]} d5 {[%emt 0:00:28]} 15. Nce3 {[%emt 0:00:03]} Qd7 {[%emt 0:00:03]} 16. Nf4 {[%emt 0:00:03]} d4 {[%emt 0:00:12]} 17. Nc2 {[%emt 0:00:05]} Nc6 {[%emt 0:00:01]} 18. Qd3 {[%emt 0:00:20]} Rac8 {[%emt 0:00:07]} 19. Rfd1 {[%emt 0:00:13]} Rfd8 {[%emt 0:00:03]} 20. Qb5 {[%emt 0:00:04]} Ne4 {[%emt 0:00:12]} 21. Qh5 {[%emt 0:00:45]} Nc3 {[%emt 0:00:27]} 22. Rd2 {[%emt 0:00:02]} Qe7 {[%emt 0:00:02]} 23. Rad1 {[%emt 0:00:06]} Nxd1 {[%emt 0:00:03]} 24. Rxd1 {[%emt 0:00:02]} Qe5 {[%emt 0:00:09]} 25. Qg4 {[%emt 0:00:08]} a5 {[%emt 0:00:10]} 26. Ne1 {[%emt 0:00:01]} Ne7 {[%emt 0:00:12]} 27. Nf3 {[%emt 0:00:01]} Qf5 {[%emt 0:00:04]} 28. Qh4 {[%emt 0:00:05]} Qf6 {[%emt 0:00:22]} 29. Qg4 {[%emt 0:00:07]} Ng6 {[%emt 0:00:09]} 30. Nh5 {[%emt 0:00:07]} Qe6 {[%emt 0:00:00]} 31. Qg5 {[%emt 0:00:23]} Qxe2 {[%emt 0:00:05]} 32. Rxd4 {[%emt 0:00:00]} Rxd4 {[%emt 0:00:06]} 33. Nxd4 {[%emt 0:00:01]} Qe1+ {[%emt 0:00:01]} 34. Kg2 {[%emt 0:00:01]} Qe4+ {[%emt 0:00:00]} 35. Nf3 {[%emt 0:00:02]} f6 {[%emt 0:00:03]} 36. Qxf6 {[%emt 0:00:06]} Rf8 {[%emt 0:00:02]} 37. Qxg7# {[%emt 0:00:02] Qd5} 1-0

[Event "RUS-ch Men Blitz 2019"]
[Site "Sochi"]
[Date "2019.10.17"]
[Round "10.21"]
[White "Radzhabov, Rodion"]
[Black "Korchmar, Vasiliy"]
[Result "0-1"]
[ECO "B40"]
[WhiteElo "2211"]
[BlackElo "2432"]
[Annotator "NA"]
[PlyCount "154"]
[EventDate "2019.10.17"]
[EventType "swiss"]
[EventCountry "RUS"]
[SourceTitle "playchess.com"]
[Source "ChessBase"]
[SourceQuality "1"]
[TimeControl "180+2"]

1. e4 {[%emt 0:00:00]} c5 {[%emt 0:00:00]} 2. Nf3 {[%emt 0:00:00]} e6 {[%emt 0:00:00]} 3. b3 {[%emt 0:00:01]} a6 {[%emt 0:00:06]} 4. Bb2 {[%emt 0:00:01]} Nc6 {[%emt 0:00:01]} 5. c4 {[%emt 0:00:06]} Nge7 {[%emt 0:00:13]} 6. d4 {[%emt 0:00:02]} cxd4 {[%emt 0:00:02]} 7. Nxd4 {[%emt 0:00:00]} Ng6 {[%emt 0:00:02]} 8. Nc2 {[%emt 0:00:18]} Bc5 {[%emt 0:00:23]} 9. g3 {[%emt 0:00:26]} O-O {[%emt 0:00:35]} 10. Bg2 {[%emt 0:00:00]} b5 {[%emt 0:00:08]} 11. Nd2 {[%emt 0:00:09]} Nce5 {[%emt 0:00:12]} 12. O-O {[%emt 0:00:15]} bxc4 {[%emt 0:00:10]} 13. Nxc4 {[%emt 0:00:02]} Nxc4 14. bxc4 {[%emt 0:00:01]} Bb7 {[%emt 0:00:07]} 15. Rb1 {[%emt 0:00:04]} Qc7 {[%emt 0:00:10]} 16. Bd4 {[%emt 0:00:06]} Bxd4 {[%emt 0:00:14]} 17. Qxd4 {[%emt 0:00:01]} Rfc8 {[%emt 0:00:16]} 18. Ne3 {[%emt 0:00:01]} a5 {[%emt 0:00:04]} 19. h4 {[%emt 0:00:23]} h6 {[%emt 0:00:06]} 20. Rfd1 {[%emt 0:00:39]} Bc6 {[%emt 0:00:06]} 21. c5 {[%emt 0:00:07]} Rab8 {[%emt 0:00:02]} 22. Nc4 {[%emt 0:00:12]} Rxb1 {[%emt 0:00:28]} 23. Rxb1 {[%emt 0:00:01]} Rb8 {[%emt 0:00:01]} 24. Rb6 {[%emt 0:00:12]} a4 {[%emt 0:00:05]} 25. Qd6 {[%emt 0:00:06]} Qxd6 {[%emt 0:00:05]} 26. Nxd6 {[%emt 0:00:01]} Ra8 {[%emt 0:00:03]} 27. f4 {[%emt 0:00:03]} Ra5 {[%emt 0:00:02]} 28. Rb8+ {[%emt 0:00:13]} Nf8 {[%emt 0:00:01]} 29. Nc8 f6 30. Ne7+ {[%emt 0:00:13]} Kf7 {[%emt 0:00:01]} 31. Nxc6 dxc6 32. Rb7+ {[%emt 0:00:08]} Kg8 {[%emt 0:00:01]} 33. Rb4 {[%emt 0:00:01]} Nd7 {[%emt 0:00:05]} 34. Bh3 {[%emt 0:00:08]} Nxc5 {[%emt 0:00:04]} 35. Rb6 {[%emt 0:00:04]} Nxe4 {[%emt 0:00:10]} 36. Bxe6+ {[%emt 0:00:01]} Kf8 {[%emt 0:00:01]} 37. Kg2 {[%emt 0:00:02]} Rc5 {[%emt 0:00:02]} 38. Rb7 {[%emt 0:00:03]} Rc2+ {[%emt 0:00:05]} 39. Kf3 {[%emt 0:00:01]} Nc5 {[%emt 0:00:02]} 40. Rb8+ {[%emt 0:00:02]} Ke7 {[%emt 0:00:01]} 41. Bg8 {[%emt 0:00:02]} Rd2 {[%emt 0:00:04]} 42. Rb6 {[%emt 0:00:02]} Kd6 {[%emt 0:00:01]} 43. Kg4 {[%emt 0:00:04]} Rd3 {[%emt 0:00:02]} 44. Rb8 {[%emt 0:00:02]} Kc7 {[%emt 0:00:02]} 45. Rf8 {[%emt 0:00:02]} Ne4 {[%emt 0:00:01]} 46. Kf5 {[%emt 0:00:03]} Nxg3+ {[%emt 0:00:01]} 47. Kg6 {[%emt 0:00:00]} Rd4 {[%emt 0:00:05]} 48. Rf7+ {[%emt 0:00:03]} Kb6 {[%emt 0:00:00]} 49. Rxg7 {[%emt 0:00:02]} Rxf4 {[%emt 0:00:02]} 50. Rf7 {[%emt 0:00:02]} Rxh4 {[%emt 0:00:02]} 51. Rxf6 {[%emt 0:00:01]} h5 {[%emt 0:00:03]} 52. Rf3 {[%emt 0:00:02]} Rg4+ {[%emt 0:00:01]} 53. Kh7 {[%emt 0:00:01]} h4 {[%emt 0:00:02]} 54. Be6 {[%emt 0:00:01]} Rg5 {[%emt 0:00:01]} 55. Kh6 {[%emt 0:00:02]} Ne4 {[%emt 0:00:01]} 56. Rf4 {[%emt 0:00:01]} Re5 {[%emt 0:00:01]} 57. Bg8 {[%emt 0:00:02]} h3 58. Rh4 Nf2 {[%emt 0:00:05]} 59. Kg6 {[%emt 0:00:06]} a3 {[%emt 0:00:03]} 60. Kf6 {[%emt 0:00:01]} Re4 {[%emt 0:00:05]} 61. Rh7 Rg4 62. Be6 {[%emt 0:00:05]} Rg3 {[%emt 0:00:01]} 63. Ke5 {[%emt 0:00:02]} Re3+ {[%emt 0:00:02]} 64. Kf6 {[%emt 0:00:01]} Rf3+ {[%emt 0:00:03]} 65. Ke5 Re3+ 66. Kf6 {[%emt 0:00:02]} Ne4+ {[%emt 0:00:02]} 67. Kf5 {[%emt 0:00:02]} Ng3+ {[%emt 0:00:03]} 68. Kf6 Ne4+ 69. Kf5 Nd6+ 70. Kf6 {[%emt 0:00:02]} Ne4+ {[%emt 0:00:03]} 71. Kf5 {[%emt 0:00:01]} Nc3 {[%emt 0:00:05]} 72. Bb3 {[%emt 0:00:05]} Kc5 73. Kf4 Rd3 {[%emt 0:00:05]} 74. Rh5+ {[%emt 0:00:02]} Nd5+ {[%emt 0:00:01]} 75. Bxd5 {[%emt 0:00:12]} cxd5 {[%emt 0:00:01]} 76. Ke5 {[%emt 0:00:02]} Kc4 {[%emt 0:00:01]} 77. Rh4+ {[%emt 0:00:02]} Kc3 {[%emt 0:00:02] Kd4+} 0-1

[Event "RUS-ch Men Blitz 2019"]
[Site "Sochi"]
[Date "2019.10.17"]
[Round "10.22"]
[White "Kokarev, Dmitry"]
[Black "Tekeyev, Zaur"]
[Result "1-0"]
[ECO "A00"]
[WhiteElo "2593"]
[BlackElo "2384"]
[Annotator "ChessBase"]
[PlyCount "51"]
[EventDate "2019.10.17"]
[EventType "swiss"]
[EventCountry "RUS"]
[SourceTitle "playchess.com"]
[Source "ChessBase"]
[SourceQuality "1"]
[TimeControl "180+2"]

1. g3 {[%emt 0:00:00]} e5 {[%emt 0:00:01]} 2. c4 {[%emt 0:00:02]} Nc6 {[%emt 0:00:02]} 3. Bg2 {[%emt 0:00:02]} Bc5 {[%emt 0:00:02]} 4. e3 {[%emt 0:00:02]} a6 {[%emt 0:00:03]} 5. Nc3 {[%emt 0:00:03]} d6 {[%emt 0:00:01]} 6. Nf3 {[%emt 0:00:03]} Ba7 {[%emt 0:00:02]} 7. d4 {[%emt 0:00:07]} exd4 {[%emt 0:00:02]} 8. exd4 {[%emt 0:00:03]} Bg4 {[%emt 0:00:22]} 9. Be3 {[%emt 0:00:25]} Nge7 {[%emt 0:00:03]} 10. h3 {[%emt 0:00:07]} Bd7 {[%emt 0:00:13]} 11. d5 {[%emt 0:00:09]} Ne5 {[%emt 0:00:33]} 12. Bxa7 {[%emt 0:00:02]} Rxa7 {[%emt 0:00:12]} 13. Nxe5 {[%emt 0:00:04]} dxe5 {[%emt 0:00:01]} 14. O-O {[%emt 0:00:02]} O-O {[%emt 0:00:06]} 15. c5 {[%emt 0:00:03]} b6 {[%emt 0:00:16]} 16. b4 {[%emt 0:00:07]} bxc5 {[%emt 0:00:12]} 17. bxc5 {[%emt 0:00:02]} Bf5 {[%emt 0:00:00]} 18. Re1 {[%emt 0:00:20]} Ng6 {[%emt 0:00:10]} 19. h4 {[%emt 0:00:15]} Qe7 {[%emt 0:00:26]} 20. h5 {[%emt 0:00:10]} Nh8 {[%emt 0:00:21]} 21. d6 {[%emt 0:00:02]} cxd6 {[%emt 0:00:03]} 22. cxd6 {[%emt 0:00:01]} Qe6 {[%emt 0:00:08]} 23. Qd5 {[%emt 0:00:08]} Rd7 {[%emt 0:00:10]} 24. Rxe5 {[%emt 0:00:07]} Qxd5 {[%emt 0:00:14]} 25. Nxd5 {[%emt 0:00:03]} g6 {[%emt 0:00:02]} 26. Nf6+ {[%emt 0:00:02]} 1-0